bitfinex-derivatives/quotes_ETHF0:USTF0_20250918
["timestamp","ask_amount","ask_price","bid_price","bid_amount"]
[1758186116639,0.7268,4602.8,4602.7,0.6962]
[1758186118043,0.7268,4602.8,4602.7,0.4863]
[1758186120531,0.7161,4602.4,4602.3,3.2078]
[1758186120732,0.7161,4602.4,4602.2,0.3211]
[1758186120940,0.7161,4602.4,4602.3,0.2994]
[1758186122736,0.7161,4602.4,4602.3,0.4917]
[1758186123545,0.4089,4602.4,4602.3,0.7016]
[1758186123844,0.7161,4602.4,4602.3,0.7016]
[1758186127645,0.2007,4602.4,4602.3,0.7016]
[1758186129845,0.7177,4602.4,4602.1,0.3184]
[1758186130147,0.7177,4602.4,4602.0,0.1231]
[1758186130343,0.7177,4602.4,4602.1,0.3184]
[1758186130544,0.7177,4602.4,4601.9,0.0217]
[1758186130741,0.7177,4602.4,4602.0,0.3184]
[1758186131043,0.7177,4602.4,4601.9,0.0217]
[1758186131942,0.7177,4602.4,4602.0,0.3184]
[1758186132249,0.7177,4602.4,4601.9,0.0217]
[1758186132646,0.7177,4602.4,4601.9,0.3401]
[1758186132851,0.8465,4602.0,4601.9,0.0217]
[1758186134146,5.0638,4602.0,4601.9,0.0217]
[1758186134747,5.0638,4602.0,4601.0,0.3184]
[1758186134946,0.7286,4601.1,4601.0,0.5207]
[1758186136647,0.7286,4601.1,4601.0,0.3184]
[1758186136849,0.4207,4600.9,4600.8,0.5207]
[1758186137149,0.7286,4600.9,4600.8,0.5207]
[1758186138346,0.7286,4600.9,4600.8,0.721]
[1758186139857,0.5195,4601.3,4601.2,0.4026]
[1758186140152,3.2078,4601.7,4601.5,0.2023]
[1758186140153,0.6397,4601.6,4601.5,0.2023]
[1758186140348,0.6397,4601.6,4601.5,0.5207]
[1758186140544,0.1185,4601.5,4601.1,0.3184]
[1758186140745,0.7286,4601.2,4601.1,0.5207]
[1758186140949,0.7286,4601.2,4600.7,3.2078]
[1758186141150,0.7286,4600.8,4600.7,3.4101]
[1758186141560,0.7286,4600.8,4600.7,0.2023]
[1758186141749,0.7286,4600.8,4600.7,0.5207]
[1758186142249,0.2116,4600.3,4600.2,0.5207]
[1758186142557,0.2116,4600.3,4600.2,0.721]
[1758186144052,0.7286,4600.3,4600.2,0.721]
[1758186145358,0.3079,4600.7,4600.2,0.721]
[1758186145556,0.3079,4600.7,4600.6,0.2023]
[1758186145749,0.2116,4600.7,4600.6,0.721]
[1758186145949,0.3079,4600.6,4600.1,0.3184]
[1758186146150,0.7286,4600.2,4600.1,0.5207]
[1758186146350,0.7286,4600.2,4600.1,0.721]
[1758186149254,0.7286,4600.2,4599.7,0.219]
[1758186149460,0.3079,4600.1,4599.7,0.219]
[1758186149662,0.7286,4600.1,4600.0,0.5207]
[1758186150054,0.3079,4600.0,4599.7,0.3184]
[1758186150254,0.7286,4599.8,4599.7,0.5207]
[1758186150449,0.7286,4599.8,4599.7,0.721]
[1758186151056,0.4207,4599.8,4599.7,0.721]
[1758186151655,0.2116,4600.1,4600.0,0.8484]
[1758186151860,0.219,4600.3,4600.0,0.53]
[1758186152163,0.5195,4600.4,4600.3,0.721]
[1758186152551,0.2116,4600.4,4600.3,0.721]
[1758186152958,0.4207,4600.4,4600.3,0.721]
[1758186153262,0.7286,4600.4,4599.6,0.219]
[1758186153463,0.3079,4600.3,4599.7,0.3184]
[1758186153661,0.7286,4600.3,4600.2,0.5207]
[1758186154263,3.4268,4600.7,4600.3,0.3184]
[1758186154568,0.2116,4600.6,4600.5,0.53]
[1758186154866,0.2116,4600.6,4600.5,0.8484]
[1758186155360,0.7286,4600.6,4600.5,0.8484]
[1758186157168,0.4949,4600.1,4600.0,0.5357]
[1758186157667,0.4949,4600.1,4600.0,0.8476]
[1758186158564,0.6908,4600.1,4600.0,0.7202]
[1758186158767,0.6908,4600.1,4600.0,0.5206]
[1758186159870,0.2081,4600.1,4600.0,0.8429]
[1758186160867,3.2078,4600.2,4600.1,0.3119]
[1758186161069,3.4159,4600.2,4600.1,0.7202]
[1758186161269,3.8986,4600.2,4600.1,0.7202]
[1758186162070,3.8986,4600.2,4599.5,3.3352]
[1758186162369,0.2081,4599.7,4599.6,0.7202]
[1758186162570,0.2868,4600.0,4599.6,0.4083]
[1758186162769,0.4949,4600.0,4599.9,0.4083]
[1758186162972,0.4949,4600.0,4599.9,0.7202]
[1758186163567,0.6908,4600.0,4599.9,0.7202]
[1758186163769,0.6908,4600.0,4599.9,0.5206]
[1758186164270,0.6908,4600.0,4599.5,0.1274]
[1758186164569,0.6908,4599.1,4599.0,0.8476]
[1758186164774,0.6908,4599.1,4598.6,0.3119]
[1758186164971,0.404,4599.1,4598.6,0.3119]
[1758186165271,3.2078,4599.6,4598.9,0.4083]
[1758186165477,1.16135873,4599.5,4599.4,0.7202]
[1758186165776,1.64405873,4599.5,4599.4,0.7202]
[1758186166474,1.76255873,4599.5,4599.1,0.3119]
[1758186166674,0.6908,4599.2,4599.1,0.3119]
[1758186166974,1.18872617,4599.2,4599.1,0.3119]
[1758186167176,1.64402175,4599.2,4598.6,0.3119]
[1758186167474,3.8986,4599.0,4598.9,0.5206]
[1758186167770,4.51302617,4599.0,4598.6,0.3119]
[1758186167976,4.51302617,4599.0,4598.6,0.5206]
[1758186167977,0.6908,4598.7,4598.6,0.5206]
[1758186168865,4.6908,4598.7,4598.2,0.02174788]
[1758186169175,0.6908,4598.3,4598.2,0.02174788]
[1758186169377,0.9108,4598.3,4598.2,0.02174788]
[1758186169565,0.9108,4598.3,4598.2,0.54234788]
[1758186169769,0.9108,4598.3,4598.2,0.74194788]
[1758186169770,0.624,4598.3,4598.2,0.74194788]
[1758186169968,0.2081,4598.3,4598.2,0.74194788]
[1758186170173,0.4281,4598.3,4598.2,0.74194788]
[1758186170971,0.2081,4598.3,4598.2,0.74194788]
[1758186171274,0.22,4598.5,4598.3,0.3119]
[1758186171573,3.8986,4599.0,4598.9,0.7202]
[1758186171763,3.6118,4599.0,4598.9,0.7202]
[1758186171972,3.6359,4599.0,4598.9,0.7202]
[1758186172369,3.8318,4599.0,4598.9,0.7202]
[1758186172573,3.2078,4599.0,4598.9,0.7202]
[1758186174374,0.6142,4599.3,4599.2,0.6853]
[1758186174972,0.3942,4599.3,4599.2,0.6853]
[1758186175476,0.6922,4599.3,4599.2,0.6853]
[1758186176076,0.3942,4599.3,4599.2,0.6853]
[1758186176277,0.1915,4599.3,4599.2,0.6853]
[1758186177877,0.3942,4599.3,4599.2,0.6853]
[1758186178176,0.6142,4599.3,4599.2,0.6853]
[1758186178678,0.9122,4599.3,4599.2,0.6853]
[1758186179378,0.6922,4599.3,4599.2,0.6853]
[1758186179578,0.9122,4599.3,4599.2,0.6853]
[1758186180179,0.1915,4599.3,4599.2,0.6853]
[1758186180379,0.4115,4599.3,4599.2,0.6853]
[1758186181277,3.5058,4599.7,4599.2,0.6853]
[1758186181473,0.4115,4599.6,4599.5,0.8003]
[1758186182372,0.1915,4599.6,4599.5,0.8003]
[1758186182573,0.4115,4599.6,4599.5,0.8003]
[1758186183182,0.22,4599.6,4599.5,0.8003]
[1758186183376,3.2078,4599.7,4599.5,0.5102]
[1758186183570,3.6193,4599.7,4599.6,0.6853]
[1758186184084,3.4278,4599.7,4599.6,0.6853]
[1758186184282,0.22,4599.7,4599.6,0.6853]
[1758186184983,0.9122,4599.7,4599.6,0.4904]
[1758186185878,0.9122,4599.7,4599.6,0.6853]
[1758186187381,0.6142,4599.7,4599.6,0.6853]
[1758186187575,0.3942,4599.7,4599.6,0.6853]
[1758186188482,0.6953,4599.7,4599.6,0.4904]
[1758186190688,0.6953,4599.7,4599.6,0.6891]
[1758186191285,0.4115,4599.7,4599.6,0.6891]
[1758186195585,0.9191,4599.7,4599.6,0.6891]
[1758186197991,0.9181,4599.7,4599.6,0.6891]
[1758186199596,0.617,4599.7,4599.6,0.6891]
[1758186200001,0.3011,4600.4,4599.7,0.3096]
[1758186200300,0.9186,4600.4,4600.3,0.7027]
[1758186201002,0.6175,4600.4,4600.3,0.7027]
[1758186202105,0.9186,4600.4,4600.3,0.7027]
[1758186202301,0.3011,4600.3,4599.6,0.3096]
[1758186202502,0.6996,4599.7,4599.6,0.7027]
[1758186203895,0.6996,4599.7,4599.6,0.3096]
[1758186204201,0.6996,4599.2,4599.1,0.504]
[1758186204598,1.19906215,4599.2,4598.2,3.44854788]
[1758186204805,0.192,4598.7,4598.6,0.7027]
[1758186205298,0.1185,4599.5,4598.6,0.7027]
[1758186205299,3.2078,4599.9,4599.3,0.7027]
[1758186205498,0.92821657,4599.8,4599.7,0.7027]
[1758186205698,0.7184376,4599.8,4599.7,0.7027]
[1758186205898,1.4180376,4599.8,4599.7,0.504]
[1758186206098,1.65480255,4599.8,4599.7,0.504]
[1758186207104,1.43580255,4599.8,4599.7,0.504]
[1758186207305,1.65580255,4599.8,4599.7,0.504]
[1758186207800,1.4190376,4599.8,4599.7,0.504]
[1758186208006,1.1990376,4599.8,4599.7,0.7027]
[1758186208403,1.4180376,4599.8,4599.7,0.504]
[1758186208602,1.1990376,4599.8,4599.7,0.7027]
[1758186208806,1.4180376,4599.8,4599.7,0.504]
[1758186209007,1.65481965,4599.8,4599.1,0.3096]
[1758186209205,0.6996,4599.6,4599.5,0.1944]
[1758186209509,1.1990376,4599.6,4599.5,0.504]
[1758186212107,1.4180376,4599.6,4599.5,0.504]
[1758186212704,0.9186,4599.6,4599.5,0.504]
[1758186213006,0.3985,4599.1,4599.0,0.8294]
[1758186213212,0.6996,4599.1,4599.0,0.7027]
[1758186213804,0.6996,4599.1,4599.0,0.8294]
[1758186215106,0.6996,4599.1,4599.0,0.504]
[1758186216102,0.6996,4599.1,4599.0,0.7027]
[1758186218110,0.6996,4599.1,4599.0,0.8262]
[1758186221301,0.192,4599.1,4599.0,0.8262]
[1758186221503,0.2123,4599.2,4599.1,0.3024]
[1758186221699,0.2123,4599.2,4599.1,0.703]
[1758186222102,0.7178,4599.2,4599.1,0.703]
[1758186224218,0.2123,4599.2,4599.1,0.703]
[1758186224809,3.2078,4599.9,4599.2,0.3024]
[1758186225014,3.7294,4599.9,4599.8,0.703]
[1758186225315,4.42499097,4599.9,4599.8,0.703]
[1758186226913,4.33469097,4599.9,4599.8,0.703]
[1758186227812,3.2078,4600.4,4599.8,0.4006]
[1758186228016,3.9256,4600.4,4600.3,0.703]
[1758186231712,3.9256,4600.4,4600.3,0.4992]
[1758186232319,4.1446,4600.4,4600.3,0.4992]
[1758186232713,4.1446,4600.4,4600.3,0.3024]
[1758186234516,4.1446,4600.4,4600.1,0.3166]
[1758186235122,4.1446,4600.4,4600.0,0.1235]
[1758186235325,4.1446,4600.4,4599.8,0.3166]
[1758186238026,0.7148,4599.6,4599.5,0.5225]
[1758186238728,0.7148,4599.6,4599.5,0.7336]
[1758186238931,0.2065,4599.6,4599.5,0.8517]
[1758186240530,0.219,4599.9,4599.5,0.8517]
[1758186240721,0.4255,4599.9,4599.8,0.7336]
[1758186241219,0.2065,4599.9,4599.8,0.7336]
[1758186241822,3.2078,4600.4,4600.0,0.1181]
[1758186242021,0.219,4600.3,4600.2,0.7336]
[1758186242222,0.4255,4600.3,4600.2,0.7336]
[1758186242428,0.7307,4600.3,4600.2,0.7336]
[1758186243032,0.4255,4600.3,4600.2,0.7336]
[1758186243628,0.7148,4600.3,4600.2,0.5225]
[1758186243938,0.7148,4600.3,4600.2,0.3166]
[1758186244134,0.7148,4600.3,4600.2,0.5225]
[1758186245029,0.7148,4600.3,4600.2,0.7336]
[1758186245532,0.2065,4600.3,4600.2,0.7336]
[1758186245924,3.2078,4600.4,4600.2,0.417]
[1758186246127,3.2078,4600.4,4600.3,0.7124]
[1758186246328,3.4048,4600.4,4600.3,0.7124]
[1758186247431,0.197,4600.4,4600.3,0.7124]
[1758186248130,0.219,4600.5,4600.3,0.7124]
[1758186248338,0.219,4600.5,4600.4,0.3136]
[1758186248637,0.416,4600.5,4600.4,0.3136]
[1758186248839,0.416,4600.5,4600.4,0.7124]
[1758186249238,0.9255,4600.5,4600.4,0.5072]
[1758186249427,1.0466,4600.5,4600.1,0.3136]
[1758186249631,1.0466,4600.5,4600.0,0.1181]
[1758186250029,0.399,4599.8,4599.7,3.715]
[1758186250235,0.7065,4599.8,4599.7,3.715]
[1758186251142,0.7065,4599.8,4599.7,0.3136]
[1758186254143,0.7065,4599.8,4598.9,3.4268]
[1758186254144,1.1429,4599.8,4599.1,0.3136]
[1758186254344,0.7065,4599.2,4599.1,0.5072]
[1758186255138,0.7065,4599.2,4599.1,0.3136]
[1758186255340,0.3075,4599.1,4598.9,3.2078]
[1758186255539,0.7065,4599.1,4599.0,0.5072]
[1758186257434,0.7065,4599.1,4599.0,0.7124]
[1758186257641,0.197,4599.1,4599.0,0.5233]
[1758186257935,0.7065,4599.1,4599.0,0.3988]
[1758186258339,0.7065,4599.1,4599.0,0.7124]
[1758186261142,0.7065,4599.1,4599.0,0.5072]
[1758186261536,0.7065,4599.1,4599.0,0.7124]
[1758186262943,0.1165,4599.0,4598.8,0.0217]
[1758186263245,0.7065,4598.9,4598.8,0.0217]
[1758186265643,4.13175,4598.9,4598.8,0.0217]
[1758186265843,3.9143,4598.9,4598.8,0.0217]
[1758186266144,7.9143,4598.9,4598.8,0.0217]
[1758186266334,8.13175,4598.9,4598.8,0.0217]
[1758186266847,7.9143,4598.9,4598.8,0.0217]
[1758186267241,0.0994,4598.5,4598.2,0.02174788]
[1758186267546,0.7065,4598.3,4598.2,0.52894788]
[1758186267745,0.9255,4598.3,4598.2,0.52894788]
[1758186268747,0.9255,4598.3,4598.2,0.33534788]
[1758186269050,0.9255,4598.3,4598.2,0.52894788]
[1758186271348,0.9255,4598.3,4598.2,0.73414788]
[1758186272149,0.7065,4598.3,4598.2,0.73414788]
[1758186272349,0.9255,4598.3,4598.2,0.73414788]
[1758186272954,0.9255,4598.3,4598.2,0.02174788]
[1758186274854,0.9255,4598.3,4598.2,0.52894788]
[1758186275055,0.9255,4598.3,4598.2,0.73414788]
[1758186277354,0.9255,4598.3,4598.2,0.33534788]
[1758186277657,0.9255,4598.3,4598.2,0.02174788]
[1758186278449,0.9255,4598.3,4598.2,0.33904788]
[1758186279358,0.9255,4598.3,4598.2,0.54544788]
[1758186283948,0.9255,4598.3,4598.2,0.74264788]
[1758186285856,0.9255,4598.3,4598.2,0.54544788]
[1758186286253,0.9255,4598.3,4598.2,0.02174788]
[1758186286458,0.9255,4598.3,4598.2,0.54544788]
[1758186287852,0.9255,4598.3,4598.2,0.74264788]
[1758186289756,0.399,4598.3,4598.2,0.74264788]
[1758186289962,0.416,4598.3,4598.2,0.74264788]
[1758186290861,0.197,4598.3,4598.2,0.74264788]
[1758186291157,3.2078,4598.4,4598.3,0.5237]
[1758186291363,3.4268,4598.4,4598.3,0.7209]
[1758186292250,3.6258,4598.4,4598.3,0.7209]
[1758186294362,4.1208,4598.4,4598.3,0.7209]
[1758186294759,4.62156301,4598.4,4598.3,0.7209]
[1758186295358,4.62156301,4598.4,4598.3,0.5237]
[1758186298266,1.41376301,4598.4,4598.3,0.5237]
[1758186299068,1.41376301,4598.4,4598.3,0.3173]
[1758186299267,1.41376301,4598.4,4598.2,0.02174788]
[1758186299468,1.20936301,4598.3,4598.2,0.02174788]
[1758186299669,1.20936301,4598.3,4598.2,0.32164788]
[1758186300561,0.71976301,4598.3,4598.2,0.73274788]
[1758186301070,0.219,4598.3,4598.2,0.73274788]
[1758186301365,0.2948,4598.8,4598.2,0.43284788]
[1758186301670,1.66449361,4598.7,4598.6,0.711]
[1758186303064,1.44549361,4598.7,4598.6,0.711]
[1758186303259,1.42854488,4598.7,4598.6,0.711]
[1758186303469,1.6644451,4598.7,4598.6,0.711]
[1758186303672,1.6644451,4598.7,4598.6,0.5113]
[1758186303866,1.44545341,4598.7,4598.6,0.5113]
[1758186304066,1.66445341,4598.7,4598.6,0.5113]
[1758186304470,1.66444235,4598.7,4598.6,0.5113]
[1758186304969,1.66444235,4598.7,4598.6,0.711]
[1758186305960,1.42854488,4598.7,4598.6,0.711]
[1758186306473,0.9276,4598.7,4598.6,0.711]
[1758186307065,0.4138,4598.7,4598.6,0.711]
[1758186307268,0.6328,4598.7,4598.6,0.711]
[1758186307566,0.9247,4598.7,4598.6,0.711]
[1758186308569,1.42531344,4598.7,4598.3,0.3167]
[1758186308769,0.9247,4598.7,4598.2,0.02174788]
[1758186309070,0.4188,4598.3,4598.2,0.33844788]
[1758186309270,0.9297,4598.3,4598.2,0.54394788]
[1758186309568,0.9297,4598.3,4598.2,0.33844788]
[1758186310274,0.9297,4598.3,4598.2,0.54394788]
[1758186311372,0.9297,4598.3,4598.2,0.74344788]
[1758186316891,0.9297,4598.3,4598.2,0.02174788]
[1758186317087,0.1148,4598.0,4597.7,0.0217]
[1758186317295,0.7107,4597.8,4597.7,0.0217]
[1758186317487,1.2114623,4597.8,4597.7,0.0217]
[1758186317686,0.4188,4597.4,4597.3,3.5245]
[1758186317888,0.9297,4597.4,4597.3,3.5245]
[1758186318285,0.9297,4597.4,4597.3,3.73]
[1758186318782,0.9297,4597.4,4597.3,0.3167]
[1758186318983,0.9297,4597.4,4597.1,0.3167]
[1758186319188,0.9297,4597.4,4597.0,0.1245]
[1758186320290,4.1375,4597.4,4596.6,0.3167]
[1758186320497,0.4188,4596.7,4596.6,0.5222]
[1758186320693,0.7107,4596.7,4596.6,0.7217]
[1758186320896,0.2075,4596.7,4596.6,0.7217]
[1758186323694,0.7107,4596.7,4596.6,0.7217]
[1758186324695,0.2919,4596.6,4596.2,3.2078]
[1758186324891,0.4188,4596.4,4596.3,0.2055]
[1758186325098,0.7107,4596.4,4596.3,0.5222]
[1758186327395,0.7107,4596.4,4596.2,0.3167]
[1758186327603,0.7107,4596.4,4596.1,0.0217]
[1758186327998,0.7107,4596.4,4596.1,0.3384]
[1758186328196,3.9185,4596.4,4596.2,0.3167]
[1758186328397,3.6266,4596.4,4596.3,0.2055]
[1758186328603,3.6266,4596.4,4596.3,0.5222]
[1758186329201,3.9185,4596.4,4596.1,0.3384]
[1758186329600,3.9185,4596.4,4596.1,0.0217]
[1758186330000,3.2078,4596.4,4596.1,0.0217]
[1758186330308,0.1132,4597.0,4596.2,0.405]
[1758186330309,0.2919,4596.8,4596.2,0.405]
[1758186330496,3.4997,4597.0,4596.7,0.3167]
[1758186330697,3.9185,4597.0,4596.9,0.7217]
[1758186331002,4.1375,4597.0,4596.9,0.7217]
[1758186332206,3.9185,4597.0,4596.9,0.7217]
[1758186332505,4.1375,4597.0,4596.9,0.7217]
[1758186333507,3.4268,4597.0,4595.8,3.2078]
[1758186333701,3.8456,4597.0,4596.9,0.5222]
[1758186334301,4.1375,4597.0,4596.9,0.5222]
[1758186335607,0.9297,4597.0,4596.9,0.7217]
[1758186338908,0.9297,4597.0,4596.9,0.5222]
[1758186341507,0.9297,4597.0,4596.9,0.7192]
[1758186342505,0.7107,4597.0,4596.9,0.7192]
[1758186342810,0.9297,4597.0,4596.9,0.7192]
[1758186344710,0.4188,4597.0,4596.9,0.7192]
[1758186344906,0.6378,4597.0,4596.9,0.7192]
[1758186345210,0.9394,4597.0,4596.9,0.7192]
[1758186345809,0.219,4597.0,4596.9,0.7192]
[1758186346007,0.1981,4597.6,4597.5,0.8033]
[1758186346207,0.71252708,4597.6,4597.5,0.8033]
[1758186346507,0.4061,4597.6,4597.5,0.8033]
[1758186346704,0.7077,4597.6,4597.5,0.8033]
[1758186347205,1.22243893,4597.6,4597.5,0.8033]
[1758186347603,1.22243893,4597.6,4597.5,0.6843]
[1758186349305,1.22243893,4597.6,4597.5,0.4873]
[1758186352506,4.43023893,4597.6,4597.5,0.4873]
[1758186352710,0.1981,4596.8,4596.7,0.6843]
[1758186353210,0.7077,4596.8,4596.7,0.6843]
[1758186353510,0.7077,4596.8,4596.7,0.4873]
[1758186359320,1.22324459,4596.8,4596.7,0.4873]
[1758186361314,1.22324459,4596.8,4596.7,0.2924]
[1758186361508,1.22324459,4596.8,4596.5,0.0217]
[1758186361509,1.44079459,4596.8,4596.5,0.0217]
[1758186361712,0.7,4596.6,4596.5,0.0217]
[1758186361919,1.21554459,4596.6,4596.5,0.0217]
[1758186363521,1.21554459,4596.6,4596.5,0.3373]
[1758186364317,1.21554459,4596.6,4596.5,0.0217]
[1758186364822,1.21554459,4596.6,4596.5,0.3373]
[1758186365117,1.21554459,4596.6,4596.5,0.5335]
[1758186366018,1.21554459,4596.6,4596.5,0.5118]
[1758186366814,1.21554459,4596.6,4596.5,0.7215]
[1758186367016,3.3206,4597.0,4596.5,0.8435]
[1758186367017,3.5054,4597.0,4596.5,0.8435]
[1758186367219,0.1937,4596.9,4596.8,0.6997]
[1758186367413,0.92805212,4596.9,4596.8,0.6997]
[1758186367614,0.4127,4596.9,4596.8,0.6997]
[1758186369426,0.1937,4596.9,4596.8,0.6997]
[1758186369613,3.2078,4597.5,4597.0,0.122]
[1758186369920,0.219,4597.6,4597.5,0.8217]
[1758186370124,0.4127,4597.7,4597.6,0.6997]
[1758186370319,0.6212,4597.7,4597.6,0.6997]
[1758186370517,0.9188,4597.7,4597.6,0.6997]
[1758186372524,0.1937,4597.7,4597.6,0.4089]
[1758186373123,0.6998,4597.7,4597.6,0.6997]
[1758186377424,0.6998,4597.7,4597.1,0.2908]
[1758186377425,4.42256877,4597.7,4597.1,0.2908]
[1758186377619,0.51496925,4597.6,4597.1,0.2908]
[1758186377820,0.1937,4597.2,4597.1,0.6997]
[1758186379528,3.7244,4597.7,4597.1,0.4089]
[1758186379721,4.1266,4597.7,4597.6,0.2014]
[1758186380019,4.64158114,4597.7,4597.6,0.4922]
[1758186381528,4.42258114,4597.7,4597.6,0.4922]
[1758186381730,4.64158114,4597.7,4597.6,0.4922]
[1758186382330,4.64158114,4597.7,4597.1,0.2908]
[1758186382532,0.4022,4597.2,4597.1,0.4922]
[1758186382833,0.4022,4597.2,4597.1,0.6997]
[1758186383129,0.6998,4597.2,4597.1,0.6997]
[1758186384030,0.6998,4597.2,4597.1,0.2908]
[1758186384227,0.6998,4597.2,4597.1,0.4922]
[1758186384732,0.6998,4597.2,4597.1,0.6997]
[1758186385227,0.4022,4596.8,4596.6,3.2295]
[1758186385429,0.6998,4596.7,4596.6,0.3125]
[1758186387027,0.6998,4596.7,4596.6,0.0217]
[1758186388124,0.6998,4596.7,4596.6,0.3125]
[1758186388526,0.6998,4596.7,4596.6,0.5139]
[1758186388933,0.9188,4596.7,4596.6,0.7214]
[1758186389133,3.2078,4597.2,4596.7,0.2908]
[1758186389334,1.43399097,4597.1,4597.0,0.8217]
[1758186391337,1.21499097,4597.1,4597.0,0.8217]
[1758186391539,1.43399097,4597.1,4597.0,0.8217]
[1758186392943,0.6998,4596.8,4596.6,0.3125]
[1758186393242,4.1266,4596.7,4596.6,0.5139]
[1758186393442,4.1266,4596.7,4596.6,0.0217]
[1758186395538,4.64199967,4596.7,4596.6,0.0217]
[1758186395740,4.64199967,4596.7,4596.6,0.3219]
[1758186396035,4.64199967,4596.7,4596.6,0.5159]
[1758186396438,4.64199967,4596.7,4596.6,0.3219]
[1758186397343,4.64199967,4596.7,4596.6,0.3002]
[1758186397947,4.64199967,4596.7,4596.6,0.4942]
[1758186399345,4.1266,4596.7,4596.6,0.4942]
[1758186399544,4.1266,4596.7,4596.6,0.3002]
[1758186399744,4.1266,4596.7,4596.0,0.1174]
[1758186399944,4.1266,4596.7,4596.1,0.3002]
[1758186400243,3.9076,4596.7,4596.1,0.3002]
[1758186400436,0.1935,4596.2,4596.1,0.6921]
[1758186400642,0.4125,4596.2,4596.1,0.6921]
[1758186401544,0.1935,4596.6,4596.5,0.8069]
[1758186401743,0.4125,4596.6,4596.5,0.8069]
[1758186402046,0.9224,4596.6,4596.5,0.8069]
[1758186403046,0.9224,4596.6,4596.5,0.6921]
[1758186404746,0.7034,4596.6,4596.5,0.6921]
[1758186404948,0.9224,4596.6,4596.5,0.4942]
[1758186405647,0.9224,4596.6,4596.0,0.1174]
[1758186405839,0.7034,4596.2,4596.1,0.194]
[1758186406046,4.1302,4596.2,4596.1,0.4942]
[1758186410546,0.9224,4596.2,4596.1,0.4942]
[1758186412546,0.9224,4596.2,4595.9,0.0217]
[1758186412755,4.1302,4596.2,4596.0,0.3002]
[1758186414351,0.519,4596.0,4595.9,0.0217]
[1758186414548,1.0353,4596.0,4595.9,0.0217]
[1758186415759,0.922,4596.0,4595.9,0.5395]
[1758186417153,1.43843997,4596.0,4595.9,0.5395]
[1758186417354,0.922,4596.0,4595.9,0.5395]
[1758186420657,0.703,4596.0,4595.9,0.5395]
[1758186421155,0.922,4596.0,4595.9,0.5395]
[1758186421949,1.43848332,4596.0,4595.9,0.3355]
[1758186422650,1.43848332,4596.0,4595.9,0.0217]
[1758186422856,1.55178332,4596.0,4595.9,0.0217]
[1758186423651,1.43848332,4596.0,4595.9,0.5395]
[1758186425359,1.43848332,4596.0,4595.9,0.5178]
[1758186426856,1.55178332,4596.0,4595.9,0.3138]
[1758186427058,1.55178332,4596.0,4595.6,0.2924]
[1758186427356,0.6919,4595.6,4595.5,0.329]
[1758186427558,0.9109,4595.6,4595.5,0.329]
[1758186427760,0.9109,4595.6,4595.5,0.6214]
[1758186432057,0.9109,4595.6,4595.5,0.4986]
[1758186432263,4.1187,4595.6,4595.5,0.2924]
[1758186432462,4.34745953,4595.6,4595.3,0.74932256]
[1758186432664,0.6919,4595.4,4595.3,0.74932256]
[1758186432866,1.20855953,4595.4,4595.3,0.74932256]
[1758186433266,1.20860096,4595.4,4595.3,0.74932256]
[1758186434667,1.20860096,4595.4,4595.3,0.95552256]
[1758186435266,1.20860096,4595.4,4595.3,1.14772256]
[1758186435464,0.2879,4596.0,4595.9,0.2062]
[1758186435667,1.46718822,4596.0,4595.9,0.6908]
[1758186435966,0.72205148,4596.0,4595.9,0.6908]
[1758186436267,0.94105148,4596.0,4595.9,0.6908]
[1758186438569,0.72205148,4596.0,4595.9,0.6908]
[1758186438869,0.219,4596.0,4595.9,0.6908]
[1758186440270,0.4243,4596.0,4595.9,0.6908]
[1758186442169,0.1131,4597.0,4596.5,0.8108]
[1758186442170,0.4932,4596.6,4596.5,0.8108]
[1758186442359,1.0102194,4596.6,4596.5,0.8108]
[1758186442557,1.4279194,4596.6,4596.5,0.8108]
[1758186446073,3.2078,4597.2,4597.0,0.12]
[1758186446273,3.4131,4597.2,4597.1,0.6908]
[1758186446462,4.63530496,4597.2,4597.1,0.6908]
[1758186447874,4.34740496,4597.2,4597.1,0.6908]
[1758186448479,3.8308,4597.2,4597.1,0.6908]
[1758186450171,3.4131,4597.2,4597.1,0.6908]
[1758186450378,0.219,4597.2,4597.1,0.6908]
[1758186452768,0.4243,4597.2,4597.1,0.6908]
[1758186454069,0.219,4597.2,4597.1,0.6908]
[1758186454577,0.4243,4597.2,4597.1,0.6908]
[1758186456374,0.219,4597.4,4597.1,0.3984]
[1758186456579,0.219,4597.4,4597.2,0.3039]
[1758186456774,0.4235,4597.4,4597.3,0.4049]
[1758186457078,0.4235,4597.4,4597.3,0.7088]
[1758186457280,0.7387,4597.4,4597.3,0.7088]
[1758186458981,0.4235,4597.4,4597.3,0.7088]
[1758186459479,0.7387,4597.4,4597.3,0.7088]
[1758186460575,0.4235,4597.4,4597.3,0.7088]
[1758186460780,0.219,4597.4,4597.3,0.7088]
[1758186461078,0.219,4597.5,4597.4,0.3039]
[1758186461277,0.2045,4597.6,4597.5,0.8292]
[1758186461482,0.4235,4597.6,4597.5,0.8292]
[1758186462983,0.2045,4597.6,4597.5,0.8292]
[1758186463184,0.4235,4597.6,4597.5,0.8292]
[1758186463680,0.219,4597.7,4597.6,0.3039]
[1758186463886,0.4235,4597.7,4597.6,0.7088]
[1758186464082,3.2078,4597.8,4597.7,0.3039]
[1758186464288,3.2078,4597.8,4597.7,0.7088]
[1758186464485,3.4123,4597.8,4597.7,0.7088]
[1758186465389,3.7275,4597.8,4597.7,0.7088]